bitfinex-derivatives/quotes_SOLF0:USTF0_20250819
["timestamp","ask_amount","ask_price","bid_price","bid_amount"]
[1755615185468,3.12,179.52,179.4,2.97]
[1755615187368,3.12,179.52,179.32,2.97]
[1755615187573,3.12,179.49,179.32,2.97]
[1755615188066,3.12,179.49,179.35,2.97]
[1755615188963,2.92,179.47,179.28,3.01]
[1755615189480,2.92,179.47,179.29,9.2634609]
[1755615189672,2.92,179.47,179.3,3.01]
[1755615190065,2.92,179.47,179.33,3.01]
[1755615190568,2.92,179.47,179.34,3.01]
[1755615193370,2.92,179.47,179.36,3.01]
[1755615193571,155.68,179.49,179.36,3.01]
[1755615196067,155.68,179.49,179.38,5.5738]
[1755615196383,155.68,179.49,179.35,3.01]
[1755615196676,2.92,179.55,179.41,5.5728]
[1755615196869,2.92,179.55,179.42,3.01]
[1755615197770,2.92,179.55,179.27,387.14692181]
[1755615197771,2.92,179.55,179.43,3.01]
[1755615200170,2.92,179.55,179.4,3.01]
[1755615200675,2.92,179.52,179.4,3.01]
[1755615202171,2.92,179.52,179.36,3.01]
[1755615205579,2.92,179.49,179.36,3.01]
[1755615205773,158.44,179.49,179.36,3.01]
[1755615206675,2.92,179.48,179.36,3.01]
[1755615208874,155.52,179.49,179.29,7.3775236]
[1755615208875,2.92,179.45,179.3,3.01]
[1755615210378,7.3775236,179.42,179.3,3.01]
[1755615210586,2.92,179.41,179.3,3.01]
[1755615210886,2.92,179.39,179.24,3.01]
[1755615211783,2.92,179.39,179.26,3.01]
[1755615213476,7.3775236,179.36,179.26,3.01]
[1755615213788,2.92,179.35,179.22,3.01]
[1755615214588,7.3775236,179.32,179.22,3.01]
[1755615214792,158.32,179.31,179.22,3.01]
[1755615214991,2.92,179.3,179.18,3.01]
[1755615220181,2.92,179.3,179.13,7.3775236]
[1755615220489,7.3775236,179.24,179.08,3.18]
[1755615220685,3.01,179.23,179.08,3.18]
[1755615221289,3.01,179.23,179.09,3.18]
[1755615223992,3.01,179.21,179.09,3.18]
[1755615224591,3.01,179.19,179.09,3.18]
[1755615225191,3.01,179.19,179.04,3.18]
[1755615226884,3.01,179.19,179.04,8.7641]
[1755615227093,3.01,179.19,179.05,3.18]
[1755615227595,3.01,179.19,179.06,3.18]
[1755615228794,3.01,179.26,179.07,7.3775236]
[1755615229092,3.01,179.26,179.1,3.18]
[1755615230584,3.01,179.26,179.11,5.582]
[1755615230790,374.8,179.27,179.12,3.18]
[1755615231196,3.01,179.26,179.12,3.18]
[1755615231587,7.3775236,179.24,179.12,3.18]
[1755615231897,3.01,179.23,179.12,3.18]
[1755615234503,530.04,179.27,179.12,3.18]
[1755615234796,533.05,179.27,179.12,3.18]
[1755615235289,533.05,179.27,179.09,7.3775236]
[1755615235290,533.05,179.27,179.14,3.18]
[1755615237598,530.04,179.27,179.15,7.3775236]
[1755615237801,530.04,179.27,179.16,3.18]
[1755615237993,530.04,179.27,179.16,8.7607]
[1755615238386,530.04,179.27,179.15,7.3775236]
[1755615238387,155.24,179.27,179.17,3.18]
[1755615238587,3.01,179.34,179.21,3.18]
[1755615239896,3.01,179.32,179.19,3.18]
[1755615240894,3.01,179.32,179.13,218.1593038]
[1755615240895,7.3775236,179.29,179.13,218.1593038]
[1755615241097,7.3775236,179.25,179.14,3.18]
[1755615241326,3.01,179.24,179.14,3.18]
[1755615242193,158.07,179.28,179.14,3.18]
[1755615243098,3.01,179.32,179.14,3.18]
[1755615243400,155.02,179.31,179.14,3.18]
[1755615243801,155.02,179.31,179.18,3.18]
[1755615244000,155.02,179.31,179.2,5.5794]
[1755615244300,155.02,179.31,179.18,3.18]
[1755615244594,155.02,179.31,179.17,12.50147232]
[1755615244595,0.97087379,179.36,179.17,12.50147232]
[1755615244798,0.97087379,179.36,179.23,3.18]
[1755615245195,3.01,179.35,179.23,3.18]
[1755615246393,0.97087379,179.36,179.23,3.18]
[1755615246594,3.01,179.35,179.23,3.18]
[1755615248099,3.01,179.35,179.18,3.18]
[1755615249803,3.07,179.31,179.14,3.15]
[1755615250101,12.50147232,179.32,179.14,3.15]
[1755615250102,12.50147232,179.27,179.14,3.15]
[1755615250300,3.07,179.26,179.14,3.15]
[1755615250696,3.07,179.26,179.1,3.15]
[1755615252398,5.97568853,179.29,179.1,3.15]
[1755615252399,154.76,179.28,179.1,3.15]
[1755615252701,154.76,179.31,179.14,12.50147232]
[1755615252899,154.76,179.31,179.18,3.15]
[1755615253401,154.76,179.31,179.18,8.7299]
[1755615253802,154.76,179.31,179.18,3.15]
[1755615254005,3.07,179.3,179.18,3.15]
[1755615255802,154.76,179.31,179.18,3.15]
[1755615256904,154.76,179.31,179.22,3.15]
[1755615257908,3.07,179.34,179.22,3.15]
[1755615258702,0.97087379,179.36,179.2,3.15]
[1755615259101,529.7,179.37,179.24,5.578]
[1755615259300,529.7,179.37,179.25,3.15]
[1755615260107,3.07,179.36,179.25,3.15]
[1755615260407,379.10075191,179.37,179.25,3.15]
[1755615265111,3.07,179.36,179.25,3.15]
[1755615267503,154.4,179.35,179.25,3.15]
[1755615268608,3.07,179.34,179.21,3.15]
[1755615270812,3.07,179.34,179.24,5.5782]
[1755615271012,3.07,179.34,179.21,3.15]
[1755615271413,3.07,179.34,179.23,5.5783]
[1755615271615,3.07,179.34,179.24,3.15]
[1755615275108,3.07,179.34,179.18,7.39170761]
[1755615275314,3.07,179.34,179.2,3.15]
[1755615275812,7.39170761,179.3,179.2,3.15]
[1755615276015,3.07,179.28,179.16,3.15]
[1755615279016,3.07,179.28,179.1,3.07]
[1755615279511,3.07,179.28,179.14,5.5813]
[1755615279811,3.07,179.28,179.1,3.07]
[1755615280118,154.1,179.27,179.17,3.07]
[1755615280515,7.39170761,179.34,179.2,5.5794]
[1755615280712,7.39170761,179.34,179.21,3.07]
[1755615280713,156.99,179.33,179.21,3.07]
[1755615281119,156.99,179.33,179.21,10.46170761]
[1755615281516,156.99,179.33,179.22,3.07]
[1755615281714,156.99,179.33,179.22,8.6487]
[1755615281916,156.99,179.33,179.22,3.07]
[1755615282620,2.91,179.32,179.22,3.07]
[1755615283813,7.39170761,179.31,179.22,3.07]
[1755615284116,7.39170761,179.31,179.16,5.5806]
[1755615284317,2.91,179.3,179.17,3.07]
[1755615284623,7.39170761,179.27,179.17,3.07]
[1755615284915,2.91,179.26,179.17,3.07]
[1755615286721,2.91,179.26,179.14,212.98824001]
[1755615286917,7.39170761,179.24,179.14,212.98824001]
[1755615287119,2.91,179.23,179.14,212.98824001]
[1755615287524,2.91,179.23,179.15,3.07]
[1755615287818,2.91,179.23,179.08,3.07]
[1755615288319,2.91,179.23,179.09,3.07]
[1755615289023,2.91,179.23,179.11,3.07]
[1755615290225,2.91,179.23,179.11,8.6523]
[1755615290524,2.91,179.23,179.11,3.07]
[1755615291314,2.91,179.23,179.11,8.6523]
[1755615291743,2.91,179.23,179.11,3.07]
[1755615292225,153.92,179.27,179.11,3.07]
[1755615292822,2.91,179.26,179.11,3.07]
[1755615293017,2.91,179.25,179.11,3.07]
[1755615295330,2.91,179.25,179.14,5.5811]
[1755615295528,2.91,179.25,179.15,3.07]
[1755615295829,2.91,179.25,179.15,8.651]
[1755615296520,2.91,179.25,179.15,3.07]
[1755615296825,153.92,179.27,179.15,3.07]
[1755615297030,153.92,179.27,179.16,5.5806]
[1755615297232,156.83,179.27,179.17,3.07]
[1755615298429,2.91,179.26,179.12,3.07]
[1755615299130,7.39170761,179.25,179.12,3.07]
[1755615299323,2.91,179.24,179.12,3.07]
[1755615300119,2.91,179.24,179.08,7.39170761]
[1755615300421,2.91,179.2,179.06,377.91]
[1755615300623,2.91,179.2,179.06,3.07]
[1755615300827,2.91,179.16,179.03,3.07]
[1755615301928,391.77,179.23,179.03,3.07]
[1755615301929,2.91,179.21,179.03,3.07]
[1755615302321,2.91,179.21,179.07,3.07]
[1755615303530,2.91,179.21,179.07,8.6535]
[1755615303728,2.91,179.21,179.08,3.07]
[1755615305431,2.91,179.21,179.08,8.6531]
[1755615305625,2.91,179.21,179.08,5.5831]
[1755615305828,2.91,179.21,179.09,3.07]
[1755615306230,2.91,179.21,179.09,8.6528]
[1755615306832,2.91,179.21,179.09,3.07]
[1755615310730,3.06,179.19,179.04,3.17]
[1755615313028,153.38,179.18,179.04,3.17]
[1755615313230,3.06,179.17,179.04,3.17]
[1755615314240,7.39170761,179.16,179.04,3.17]
[1755615314537,3.06,179.15,179.04,3.17]
[1755615317454,7.39170761,179.2,179.04,3.17]
[1755615317633,3.06,179.19,179.06,5.5834]
[1755615317832,3.06,179.19,179.04,3.17]
[1755615318536,3.06,179.19,179.06,3.17]
[1755615318741,10.45170761,179.19,179.06,3.17]
[1755615318937,3.06,179.18,179.06,3.17]
[1755615320440,3.06,179.18,179.02,3.17]
[1755615322645,3.06,179.18,179.03,3.17]
[1755615322837,3.06,179.18,179.04,3.17]
[1755615323142,3.06,179.18,179.03,7.39170761]
[1755615323143,3.06,179.18,179.05,5.5841]
[1755615323343,3.06,179.18,179.06,3.17]
[1755615330344,3.06,179.18,179.08,3.17]
[1755615330545,152.98,179.2,179.08,3.17]
[1755615330937,152.98,179.2,179.09,5.5828]
[1755615331148,152.98,179.2,179.1,3.17]
[1755615331347,375.02,179.23,179.1,3.17]
[1755615332056,378.08,179.23,179.1,3.17]
[1755615332647,375.02,179.23,179.1,3.17]
[1755615332845,3.06,179.22,179.1,3.17]
[1755615335545,375.02,179.23,179.1,3.17]
[1755615335743,155.88,179.25,179.1,3.17]
[1755615335951,3.06,179.25,179.11,5.582]
[1755615336148,3.06,179.25,179.1,3.17]
[1755615336149,3.06,179.25,179.12,3.17]
[1755615336345,3.06,179.24,179.12,3.17]
[1755615338151,3.06,179.23,179.12,3.17]
[1755615340067,3.1,179.22,179.12,3.17]
[1755615345457,3.1,179.26,179.12,3.17]
[1755615345655,3.1,179.26,179.15,3.17]
[1755615346353,3.1,179.26,179.15,8.7508]
[1755615346552,3.1,179.26,179.16,3.17]
[1755615346757,7.39170761,179.29,179.16,3.17]
[1755615346758,3.1,179.29,179.16,3.17]
[1755615347060,152.52,179.31,179.2,3.17]
[1755615347854,152.52,179.31,179.17,7.39170761]
[1755615348060,375.18,179.33,179.18,3.17]
[1755615348354,375.18,179.33,179.17,7.39170761]
[1755615348560,378.28,179.33,179.18,3.17]
[1755615349279,378.28,179.33,179.22,3.17]
[1755615351355,378.28,179.33,179.22,8.7486]
[1755615351854,378.28,179.33,179.23,3.17]
[1755615352047,3.1,179.32,179.23,3.17]
[1755615353057,3.1,179.32,179.17,5.5803]
[1755615353058,3.1,179.31,179.19,3.17]
[1755615353259,10.49170761,179.31,179.19,3.17]
[1755615353558,3.1,179.3,179.19,3.17]
[1755615358062,3.1,179.26,179.16,3.17]
[1755615358463,3.1,179.29,179.16,3.17]
[1755615359762,159.57170761,179.31,179.02,23.67702181]
[1755615359763,3.1,179.21,179.05,3.17]
[1755615359963,3.1,179.17,179.05,3.17]
[1755615360452,3.1,179.13,179.02,3.17]
[1755615362069,7.39170761,179.1,179.02,3.17]
[1755615363060,3.1,179.15,179.02,3.17]
[1755615364669,152.06,179.16,179.02,3.17]
[1755615364969,3.1,179.13,179.02,3.17]
[1755615365156,152.06,179.16,178.91,375.0]
[1755615365157,10.49170761,179.1,178.91,375.0]
[1755615365357,7.39170761,179.05,178.92,3.17]
[1755615365567,3.1,179.04,178.92,3.17]
[1755615365767,3.1,179.0,178.92,3.17]
[1755615366468,152.1,179.03,178.92,3.17]
[1755615366668,10.49170761,179.05,178.92,3.17]
[1755615367269,3.1,179.05,178.92,3.17]
[1755615368870,0.9724745,179.06,178.92,3.17]
[1755615369064,0.9724745,179.06,178.85,0.97250168]
[1755615369065,527.2,179.07,178.94,3.04]
[1755615369269,152.1,179.13,178.97,7.39170761]
[1755615369575,152.1,179.13,178.98,3.04]
[1755615369973,3.07,179.12,178.98,3.04]
[1755615370369,3.07,179.11,178.98,3.04]
[1755615370972,3.07,179.07,178.93,3.04]
[1755615372373,0.97225715,179.08,178.93,3.04]
[1755615372581,3.07,179.11,178.96,3.04]
[1755615372976,3.07,179.11,178.99,7.39170761]
[1755615373184,153.09218924,179.14,179.0,3.04]
[1755615373478,3.07,179.13,179.0,3.04]
[1755615374282,7.39170761,179.11,179.0,3.04]
[1755615374483,3.07,179.1,178.93,3.04]
[1755615375076,153.09218924,179.14,178.92,7.39170761]
[1755615375077,0.97218924,179.14,179.0,3.04]
[1755615376676,0.97218924,179.14,179.01,3.04]
[1755615376878,3.07,179.15,179.02,5.585]
[1755615377079,3.07,179.15,179.03,3.04]
[1755615377480,376.11191772,179.17,179.04,3.04]
[1755615377688,375.14,179.17,179.04,10.43170761]
[1755615377989,375.14,179.17,179.04,16.01590761]
[1755615378480,375.14,179.17,179.05,8.6239]
[1755615378679,3.07,179.24,179.08,7.39170761]
[1755615378884,3.98194658,179.23,179.09,3.04]
[1755615379082,4.04151073,179.24,179.09,3.04]
[1755615380488,7.05129579,179.23,179.09,3.04]
[1755615380787,3.07,179.23,179.09,3.04]
[1755615380991,3.07,179.23,179.09,8.6228]
[1755615381288,3.07,179.23,179.1,3.04]
[1755615382285,3.98034626,179.22,179.06,10.43170761]
[1755615382486,3.98034626,179.21,179.06,10.43170761]
[1755615382783,7.05034626,179.2,179.06,3.04]
[1755615382980,3.07,179.2,179.06,3.04]
[1755615383185,10.46170761,179.2,179.06,3.04]
[1755615383486,3.07,179.18,179.06,3.04]
[1755615385088,3.07,179.15,179.0,5.5856]
[1755615385287,3.07,179.15,179.01,3.04]
[1755615393203,3.93111344,179.14,179.01,3.04]
[1755615393399,3.07,179.15,179.01,3.04]
[1755615393599,3.93091987,179.14,179.01,3.04]
[1755615393800,3.07,179.15,179.01,3.04]
[1755615395500,3.93797418,179.14,179.01,3.04]
[1755615395704,3.07,179.15,179.01,3.04]
[1755615396201,3.07,179.15,179.02,5.585]
[1755615396503,3.07,179.15,179.03,3.04]
[1755615398204,3.94656582,179.14,179.03,3.04]
[1755615398506,3.07,179.15,179.03,3.04]
[1755615398704,3.07,179.13,179.03,3.04]
[1755615398998,3.94654863,179.12,179.03,3.04]
[1755615399304,3.07,179.13,179.03,3.04]
[1755615400302,3.16,179.17,179.05,3.15]
[1755615400601,3.94956874,179.16,179.05,3.15]
[1755615400798,3.94956874,179.15,179.05,3.15]
[1755615401001,7.10956874,179.14,179.05,3.15]
[1755615401194,3.16,179.14,179.05,3.15]
[1755615402010,3.9534506,179.13,179.05,3.15]
[1755615402195,3.95650754,179.12,179.05,3.15]
[1755615402396,3.16,179.14,179.05,3.15]
[1755615402600,3.95650437,179.13,179.05,3.15]
[1755615402801,3.95650437,179.12,179.05,3.15]
[1755615403000,3.16,179.14,179.05,3.15]
[1755615403204,3.9571186,179.13,179.05,3.15]
[1755615403411,3.9571186,179.12,179.05,3.15]
[1755615403606,3.16,179.14,179.05,3.15]
[1755615403901,3.16,179.12,178.97,3.15]
[1755615404106,3.96011636,179.11,178.97,3.15]
[1755615404308,3.16,179.12,178.96,7.39170761]
[1755615404309,3.96011636,179.1,179.0,3.15]
[1755615404498,3.16,179.12,179.0,3.15]
[1755615404698,3.96347448,179.11,179.0,3.15]
[1755615404911,3.96347448,179.1,179.0,3.15]
[1755615405198,3.16,179.12,179.0,3.15]
[1755615405406,3.96542447,179.11,179.0,3.15]
[1755615405600,3.96595674,179.1,179.0,3.15]
[1755615405802,3.16,179.12,179.0,3.15]
[1755615406103,3.96632244,179.11,179.0,3.15]
[1755615406307,3.16,179.12,179.02,3.15]
[1755615406506,3.96704625,179.11,179.02,3.15]
[1755615406707,3.16,179.12,179.02,3.15]
[1755615406708,3.96704625,179.1,179.02,3.15]
[1755615406903,3.16,179.17,179.02,3.15]
[1755615407105,3.96768439,179.16,179.02,3.15]
[1755615407302,3.16,179.17,179.05,3.15]
[1755615407704,3.16,179.22,179.09,3.15]
[1755615407902,3.16,179.22,179.12,3.15]
[1755615410300,3.16,179.22,179.08,3.15]
[1755615412711,3.16,179.22,179.09,3.15]
[1755615414111,3.16,179.22,179.1,3.15]
[1755615419011,7.39170761,179.19,179.06,3.15]
[1755615419216,3.16,179.18,179.06,3.15]
[1755615419806,3.16,179.18,179.07,3.15]
[1755615420206,3.16,179.18,179.06,4.67273049]
[1755615420207,3.16,179.22,179.08,4.67273049]
[1755615420412,3.16,179.22,179.09,3.15]
[1755615420608,3.16,179.26,179.15,5.5809]
[1755615420813,3.16,179.26,179.16,3.15]
[1755615421016,3.16,179.26,179.12,3.15]
[1755615421718,3.16,179.26,179.13,3.15]
[1755615426217,3.16,179.26,179.14,3.15]
[1755615427020,3.16,179.26,179.14,8.7312]
[1755615427320,3.16,179.26,179.15,3.15]
[1755615431123,3.16,179.26,179.1,4.67273049]
[1755615431424,3.16,179.26,179.12,3.09]
[1755615432918,383.66315054,179.27,179.07,380.7032]
[1755615432919,3.09,179.22,179.09,3.09]
[1755615433121,3.09,179.2,179.09,3.09]
[1755615435124,7.39170761,179.19,179.09,3.09]
[1755615435319,3.09,179.18,179.09,3.09]
[1755615435728,3.09,179.18,179.03,3.09]
[1755615438323,154.31,179.18,179.03,3.09]
[1755615438626,3.09,179.17,179.03,3.09]
[1755615439231,154.31,179.17,179.03,3.09]
[1755615439430,3.09,179.16,179.03,3.09]
[1755615439937,3.09,179.15,179.0,151.3]
[1755615440323,7.39170761,179.12,178.99,3.09]
[1755615440527,3.09,179.11,178.99,3.09]
[1755615443619,3.09,179.11,178.92,4.67273049]
[1755615443620,7.39170761,179.08,178.92,4.67273049]
[1755615443818,151.16,179.07,178.93,3.09]
[1755615444028,3.09,179.03,178.93,3.09]
[1755615445424,3.09,179.03,178.88,214.62465962]
[1755615445425,3.09,179.03,178.89,3.09]
[1755615445629,3.09,178.99,178.89,3.09]
[1755615448924,3.09,178.99,178.83,3.09]
[1755615449129,7.39170761,178.97,178.83,3.09]
[1755615449335,3.09,178.96,178.83,3.09]
[1755615450029,10.48170761,178.93,178.8,3.09]
[1755615450233,3.09,178.92,178.8,3.09]
[1755615453629,7.39170761,178.95,178.8,3.09]
[1755615453830,3.09,178.96,178.8,3.09]
[1755615454029,3.09,178.96,178.81,3.09]
[1755615455640,3.09,178.94,178.81,3.09]
[1755615456632,3.09,178.94,178.81,8.6814]
[1755615456838,3.09,178.94,178.82,3.09]
[1755615463033,3.09,178.94,178.75,7.39170761]
[1755615463034,7.39170761,178.91,178.76,3.08]
[1755615463342,3.03,178.9,178.76,3.08]
[1755615463729,7.39170761,178.87,178.76,3.08]
[1755615464038,3.03,178.86,178.76,3.08]
[1755615466036,154.05,178.9,178.76,3.08]
[1755615466435,154.05,178.9,178.77,3.08]
[1755615466837,3.03,178.89,178.77,3.08]
[1755615470937,7.39170761,178.87,178.77,3.08]
[1755615471138,3.03,178.86,178.77,3.08]
[1755615473444,3.03,178.86,178.73,3.08]
[1755615478356,4.77982612,178.83,178.73,3.08]
[1755615478640,4.77982612,178.8,178.62,239.03575384]
[1755615478842,7.80982612,178.8,178.65,4.77982612]
[1755615479042,7.80982612,178.8,178.66,3.08]
[1755615479238,7.80982612,178.8,178.66,8.6762]
[1755615479436,7.80982612,178.8,178.67,3.08]
[1755615480045,7.80982612,178.8,178.68,3.08]
[1755615480245,375.84,178.86,178.71,4.77982612]
[1755615480447,375.84,178.86,178.75,3.08]
[1755615480646,3.03,178.88,178.78,3.08]
[1755615481043,150.82,178.9,178.78,3.08]
[1755615481240,3.03,178.94,178.81,3.08]
[1755615481443,3.03,178.94,178.83,4.77982612]
[1755615481744,3.03,178.94,178.84,3.08]
[1755615482243,380.61982612,178.96,178.85,3.08]
[1755615482550,375.84,178.96,178.85,3.08]
[1755615483145,3.03,178.98,178.85,3.08]
[1755615483452,3.03,178.98,178.85,8.6703]
[1755615483642,3.03,178.98,178.86,3.08]
[1755615484953,3.03,178.98,178.72,11.1887]
[1755615484954,3.03,178.96,178.79,3.08]
[1755615485348,16.76,178.96,178.79,3.08]
[1755615485556,3.03,178.92,178.79,3.08]
[1755615485949,7.42342527,178.89,178.79,3.08]
[1755615486152,3.03,178.88,178.75,3.08]
[1755615486347,19.79,178.88,178.75,3.08]
[1755615486550,3.03,178.84,178.75,3.08]
[1755615487646,3.03,178.88,178.75,3.08]
[1755615489755,150.68,178.89,178.75,3.08]
[1755615489951,3.19,178.9,178.75,3.08]
[1755615491452,3.19,178.9,178.75,8.6735]
[1755615491657,3.19,178.9,178.75,2.9]
[1755615493554,3.19,178.89,178.75,2.9]
[1755615494552,3.19,178.89,178.75,8.4933]
[1755615494754,3.19,178.89,178.76,2.9]
[1755615495061,3.19,178.89,178.76,8.493]
[1755615495360,3.19,178.89,178.76,2.9]
[1755615496853,3.19,178.89,178.74,7.42342527]
[1755615497058,3.19,178.89,178.75,2.9]
[1755615497362,3.19,178.93,178.79,5.592]
[1755615497559,3.19,178.93,178.8,2.9]
[1755615497957,3.19,178.93,178.81,2.9]
[1755615500659,3.19,178.91,178.75,2.9]
[1755615501265,3.19,178.91,178.75,8.4933]
[1755615501570,3.19,178.91,178.76,2.9]
[1755615502762,7.42342527,178.88,178.76,2.9]
[1755615502956,3.19,178.87,178.76,2.9]
[1755615506358,3.19,178.87,178.7,375.86]
[1755615506558,7.42342527,178.84,178.72,2.9]
[1755615506761,3.19,178.83,178.72,2.9]
[1755615509568,167.22,178.88,178.72,2.9]
[1755615509569,10.61342527,178.88,178.72,2.9]
[1755615509765,10.61342527,178.88,178.73,5.594]
[1755615509972,10.61342527,178.88,178.74,2.9]
[1755615511469,10.61342527,178.88,178.74,5.5936]
[1755615511668,10.61342527,178.88,178.75,2.9]
[1755615511968,10.61342527,178.88,178.75,5.5934]
[1755615512168,3.19,178.88,178.73,2.9]
[1755615512671,3.19,178.88,178.74,7.42342527]
[1755615512868,3.19,178.88,178.75,2.9]
[1755615513064,3.19,178.88,178.77,5.5927]
[1755615513371,3.19,178.88,178.78,2.9]
[1755615513967,3.19,178.88,178.72,2.9]
[1755615513968,3.19,178.84,178.72,2.9]
[1755615519274,7.42342527,178.83,178.72,2.9]
[1755615519475,3.0,178.82,178.72,2.9]
[1755615521579,3.0,178.82,178.66,3.13]
[1755615521580,7.42342527,178.79,178.66,3.13]
[1755615521768,3.0,178.78,178.63,3.13]
[1755615521975,3.0,178.77,178.63,3.13]
[1755615522175,3.0,178.74,178.62,239.03575384]
[1755615523068,3.0,178.74,178.63,3.13]
[1755615523272,3.0,178.73,178.6,3.13]
[1755615523981,7.42342527,178.71,178.6,3.13]
[1755615524184,3.0,178.7,178.6,3.13]
[1755615534184,3.0,178.75,178.6,3.13]
[1755615534683,3.0,178.75,178.61,3.13]
[1755615536282,3.0,178.75,178.61,8.7278]
[1755615536484,3.0,178.75,178.62,3.13]
[1755615539496,3.0,178.74,178.62,3.13]
[1755615540605,3.0,178.77,178.62,3.13]
[1755615540898,3.0,178.77,178.65,3.13]
[1755615541095,149.96,178.79,178.65,3.13]
[1755615541291,3.0,178.78,178.65,3.13]
[1755615546305,3.0,178.78,178.67,3.13]
[1755615547897,4.78178881,178.77,178.67,3.13]
[1755615548103,4.78178881,178.74,178.61,3.13]
[1755615548406,7.78178881,178.71,178.61,3.13]
[1755615548605,4.78178881,178.74,178.61,3.13]
[1755615550306,3.0,178.75,178.61,3.13]
[1755615550506,7.44335446,178.72,178.57,3.02]
[1755615550705,10.43335446,178.71,178.57,3.02]
[1755615551403,7.44335446,178.71,178.57,3.02]
[1755615551605,2.99,178.7,178.57,3.02]
[1755615554302,2.99,178.66,178.57,3.02]
[1755615554510,2.99,178.66,178.48,157.22335446]
[1755615554511,2.99,178.62,178.49,3.02]
[1755615554708,2.99,178.62,178.5,5.6011]
[1755615554900,10.43335446,178.66,178.49,3.02]
[1755615555306,10.43335446,178.66,178.52,3.02]
[1755615556007,10.43335446,178.66,178.52,8.6206]
[1755615556207,10.43335446,178.66,178.53,3.02]
[1755615556805,7.44335446,178.66,178.53,3.02]
[1755615557001,2.99,178.65,178.53,3.02]
[1755615557304,2.99,178.65,178.47,375.92]
[1755615557510,2.99,178.61,178.48,3.02]
[1755615558397,2.99,178.61,178.48,8.6218]
[1755615558601,2.99,178.61,178.49,3.02]
[1755615559402,10.43335446,178.66,178.5,7.44335446]
[1755615559605,2.99,178.66,178.52,3.02]
[1755615560504,2.99,178.66,178.52,5.6007]
[1755615560709,2.99,178.66,178.53,3.02]
[1755615561306,2.99,178.66,178.51,3.02]
[1755615561508,376.1,178.69,178.55,3.02]
[1755615561703,2.99,178.68,178.55,3.02]
[1755615564704,7.44335446,178.66,178.55,3.02]
[1755615564910,2.99,178.65,178.55,3.02]
[1755615566711,2.99,178.64,178.55,3.02]